[Event "European Womens-ch 2025"]
[Site "Rhodes"]
[Date "2025.03.31"]
[Round "1.15"]
[White "Fataliyeva, Ulviyya"]
[Black "Dicen, Elis Denele"]
[Result "1-0"]
[Annotator "RC"]
[ECO "E05"]
[WhiteElo "2387"]
[BlackElo "2129"]
[PlyCount "69"]
[EventDate "2025.03.29"]
[EventType "swiss"]
[EventCountry "GRE"]
[SourceTitle "playchess.com"]
[Source "ChessBase"]
[SourceQuality "1"]
[TimeControl "40/5400+30:1800+30"]

1. Nf3 {[%emt 0:00:57]} d5 {[%emt 0:00:14]} 2. g3 {[%emt 0:00:07]} Nf6 {[%emt 0:00:19]} 3. Bg2 {[%emt 0:00:07]} e6 {[%emt 0:00:15]} 4. c4 {[%emt 0:00:50]} Be7 {[%emt 0:00:18]} 5. O-O {[%emt 0:02:40]} O-O {[%emt 0:00:17]} 6. d4 {[%emt 0:00:04]} dxc4 {[%emt 0:00:07]} 7. Qa4 {[%emt 0:01:31]} a6 {[%emt 0:03:57]} 8. Qxc4 {[%emt 0:01:06]} b5 {[%emt 0:03:42]} 9. Qc2 {[%emt 0:00:05]} Bb7 {[%emt 0:00:42]} 10. Bd2 {[%emt 0:00:10]} Nbd7 {[%emt 0:01:45]} 11. Ba5 {[%emt 0:02:56]} Rc8 {[%emt 0:05:07]} 12. Nbd2 {[%emt 0:09:31]} Qe8 {[%emt 0:05:37]} 13. b4 {[%emt 0:01:28]} Bd6 {[%emt 0:06:44]} 14. e4 {[%emt 0:03:28]} e5 {[%emt 0:05:27]} 15. Rfe1 {[%emt 0:00:42]} Qe7 {[%emt 0:07:14]} 16. a3 {[%emt 0:04:48]} Rfe8 {[%emt 0:08:53]} 17. Rad1 {[%emt 0:08:02]} c6 {[%emt 0:08:17]} 18. Nb3 {[%emt 0:08:08]} Qf8 {[%emt 0:09:38]} 19. dxe5 {[%emt 0:02:50]} Nxe5 {[%emt 0:01:27]} 20. Nxe5 {[%emt 0:00:09]} Bxe5 {[%emt 0:00:26]} 21. Nc5 {[%emt 0:00:12]} Re7 {[%emt 0:07:38]} 22. Bh3 {[%emt 0:06:05]} Ra8 {[%emt 0:03:48]} 23. Nxb7 {[%emt 0:03:09]} Rxb7 {[%emt 0:00:13]} 24. Qxc6 {[%emt 0:00:22]} Rbb8 {[%emt 0:03:45]} 25. f4 {[%emt 0:00:42]} Bb2 {[%emt 0:03:16]} 26. Qc2 {[%emt 0:01:20]} Bxa3 {[%emt 0:01:58]} 27. Qb3 {[%emt 0:00:19]} Bxb4 {[%emt 0:01:40]} 28. Bxb4 {[%emt 0:00:22]} Qe8 {[%emt 0:00:17]} 29. e5 {[%emt 0:00:15]} Nh5 {[%emt 0:01:12]} 30. e6 {[%emt 0:01:02]} fxe6 {[%emt 0:01:17]} 31. Bxe6+ {[%emt 0:00:14]} Kh8 {[%emt 0:00:12]} 32. Bf7 {[%emt 0:00:24]} Qc6 {[%emt 0:01:14]} 33. Bxh5 {[%emt 0:00:14]} a5 {[%emt 0:00:31]} 34. Bf3 {[%emt 0:01:14]} Qb6+ {[%emt 0:00:38]} 35. Qe3 {[%emt 0:00:16]} 1-0

[Event "European Womens-ch 2025"]
[Site "Rhodes"]
[Date "2025.03.31"]
[Round "1.16"]
[White "Nadzamova, Viktoria"]
[Black "Narva, Mai"]
[Result "0-1"]
[Annotator "RC"]
[ECO "B26"]
[WhiteElo "2122"]
[BlackElo "2380"]
[PlyCount "82"]
[EventDate "2025.03.29"]
[EventType "swiss"]
[EventCountry "GRE"]
[SourceTitle "playchess.com"]
[Source "ChessBase"]
[SourceQuality "1"]
[TimeControl "40/5400+30:1800+30"]

1. e4 {[%emt 0:00:09]} c5 {[%emt 0:00:07]} 2. Nc3 {[%emt 0:00:23]} Nc6 {[%emt 0:00:22]} 3. g3 {[%emt 0:00:35]} g6 {[%emt 0:00:44]} 4. Bg2 {[%emt 0:00:46]} Bg7 {[%emt 0:00:08]} 5. d3 {[%emt 0:00:58]} Rb8 {[%emt 0:01:13]} 6. Be3 {[%emt 0:00:49]} d6 {[%emt 0:02:43]} 7. Qd2 {[%emt 0:01:53]} b5 {[%emt 0:00:59]} 8. Nge2 {[%emt 0:01:33]} b4 {[%emt 0:03:31]} 9. Nd1 {[%emt 0:00:52]} Nd4 {[%emt 0:01:21]} 10. O-O {[%emt 0:03:21]} e6 {[%emt 0:01:53]} 11. Nc1 {[%emt 0:08:02]} Ne7 {[%emt 0:08:44]} 12. c3 {[%emt 0:01:28]} bxc3 {[%emt 0:00:28]} 13. bxc3 {[%emt 0:00:07]} Ndc6 {[%emt 0:00:55]} 14. Bh6 {[%emt 0:02:18]} O-O {[%emt 0:00:35]} 15. Bxg7 {[%emt 0:00:39]} Kxg7 {[%emt 0:00:05]} 16. Ne3 {[%emt 0:00:31]} a5 {[%emt 0:05:09]} 17. a4 {[%emt 0:00:51]} d5 {[%emt 0:04:05]} 18. Qc2 {[%emt 0:08:25]} Ba6 {[%emt 0:04:52]} 19. exd5 {[%emt 0:03:11]} exd5 {[%emt 0:00:24]} 20. Re1 {[%emt 0:04:57]} Qd6 {[%emt 0:03:47]} 21. Ne2 {[%emt 0:03:08]} d4 {[%emt 0:04:05]} 22. Nc4 {[%emt 0:06:04]} Qf6 {[%emt 0:04:10]} 23. cxd4 {[%emt 0:02:02]} cxd4 {[%emt 0:00:20]} 24. Nf4 {[%emt 0:00:30]} Nb4 {[%emt 0:01:18]} 25. Qd2 {[%emt 0:01:49]} Nec6 {[%emt 0:02:34]} 26. Rac1 {[%emt 0:03:35]} Rfc8 {[%emt 0:04:13]} 27. Bh3 {[%emt 0:02:44]} Rd8 {[%emt 0:01:23]} 28. Re4 {[%emt 0:10:30]} Bxc4 {[%emt 0:02:38]} 29. dxc4 {[%emt 0:02:19]} d3 {[%emt 0:00:58]} 30. Bg2 {[%emt 0:01:18]} Nd4 {[%emt 0:02:12]} 31. Rd1 {[%emt 0:03:01]} Rbc8 {[%emt 0:04:57]} 32. Nd5 {[%emt 0:09:05]} Nxd5 {[%emt 0:02:53]} 33. cxd5 {[%emt 0:01:51]} Rc2 {[%emt 0:00:34]} 34. Qe3 {[%emt 0:00:08]} Ne2+ {[%emt 0:03:13]} 35. Kh1 {[%emt 0:01:18]} Nc3 {[%emt 0:00:43]} 36. Rxd3 {[%emt 0:03:23]} Nxe4 {[%emt 0:01:04]} 37. Bxe4 {[%emt 0:00:10]} Rxf2 {[%emt 0:00:36]} 38. Qd4 {[%emt 0:00:52]} Rb8 {[%emt 0:01:50]} 39. Qxf6+ {[%emt 0:03:54]} Kxf6 {[%emt 0:00:05]} 40. Re3 {[%emt 0:00:00]} Rbb2 {[%emt 0:00:00]} 41. Kg1 {[%emt 0:02:24]} Rfe2 {[%emt 0:01:31]} 0-1

[Event "European Womens-ch 2025"]
[Site "Rhodes"]
[Date "2025.03.31"]
[Round "1.17"]
[White "Vega Gutierrez, Sabrina"]
[Black "Berke, Ana"]
[Result "1-0"]
[Annotator "RC"]
[ECO "B32"]
[WhiteElo "2380"]
[BlackElo "2119"]
[PlyCount "71"]
[EventDate "2025.03.29"]
[EventType "swiss"]
[EventCountry "GRE"]
[SourceTitle "playchess.com"]
[Source "ChessBase"]
[SourceQuality "1"]
[TimeControl "40/5400+30:1800+30"]

1. e4 {[%emt 0:00:04]} c5 {[%emt 0:00:09]} 2. Nf3 {[%emt 0:00:10]} Nc6 {[%emt 0:00:16]} 3. d4 {[%emt 0:00:13]} cxd4 {[%emt 0:00:07]} 4. Nxd4 {[%emt 0:00:08]} e5 {[%emt 0:00:11]} 5. Nb5 {[%emt 0:00:34]} d6 {[%emt 0:00:10]} 6. c4 {[%emt 0:01:48]} Be6 {[%emt 0:00:33]} 7. N5c3 {[%emt 0:01:19]} g6 {[%emt 0:00:48]} 8. Nd5 {[%emt 0:03:13]} Bh6 {[%emt 0:01:36]} 9. Nbc3 {[%emt 0:06:12]} Nd4 {[%emt 0:05:02]} 10. Bd3 {[%emt 0:06:29]} Bxc1 {[%emt 0:07:24]} 11. Qxc1 {[%emt 0:01:21]} f5 {[%emt 0:05:17]} 12. exf5 {[%emt 0:10:45]} gxf5 {[%emt 0:02:49]} 13. O-O {[%emt 0:01:00]} Nf6 {[%emt 0:09:15]} 14. Qh6 {[%emt 0:03:18]} Kf7 {[%emt 0:07:35]} 15. Ne2 {[%emt 0:04:10]} Nc6 {[%emt 0:11:52]} 16. Ng3 {[%emt 0:02:34]} e4 {[%emt 0:06:33]} 17. Be2 {[%emt 0:05:01]} Rg8 {[%emt 0:08:09]} 18. Bh5+ {[%emt 0:06:15]} Nxh5 {[%emt 0:03:46]} 19. Nxh5 {[%emt 0:19:14]} Qg5 {[%emt 0:04:15]} 20. Qxh7+ {[%emt 0:00:37]} Kf8 {[%emt 0:00:53]} 21. Ndf4 {[%emt 0:01:06]} Bf7 {[%emt 0:02:10]} 22. h4 {[%emt 0:02:38]} Qxh4 {[%emt 0:03:33]} 23. Qxf5 {[%emt 0:07:03]} Ne5 {[%emt 0:03:08]} 24. Ng3 {[%emt 0:00:45]} e3 {[%emt 0:04:52]} 25. Qe4 {[%emt 0:08:11]} Ng4 {[%emt 0:05:19]} 26. Nh3 {[%emt 0:03:11]} Re8 {[%emt 0:03:05]} 27. Qf4 {[%emt 0:00:22]} Qh7 {[%emt 0:03:29]} 28. Qxd6+ {[%emt 0:00:59]} Re7 {[%emt 0:00:54]} 29. fxe3 {[%emt 0:00:23]} Nxe3 {[%emt 0:00:50]} 30. Rfe1 {[%emt 0:02:04]} Rg6 {[%emt 0:00:24]} 31. Qf4 {[%emt 0:01:22]} Qg7 {[%emt 0:00:26]} 32. Rxe3 {[%emt 0:01:02]} Rxe3 {[%emt 0:00:43]} 33. Qxe3 {[%emt 0:00:16]} Rxg3 {[%emt 0:00:22]} 34. Qf2 {[%emt 0:02:17]} Kg8 {[%emt 0:00:42]} 35. Rd1 {[%emt 0:00:13]} Rxh3 {[%emt 0:00:47]} 36. Rd8+ {[%emt 0:00:10]} 1-0

[Event "European Womens-ch 2025"]
[Site "Rhodes"]
[Date "2025.03.31"]
[Round "1.18"]
[White "Koridze, Lile"]
[Black "Maltsevskaya, Aleksandra"]
[Result "0-1"]
[Annotator "RC"]
[ECO "E91"]
[WhiteElo "2115"]
[BlackElo "2376"]
[PlyCount "112"]
[EventDate "2025.03.29"]
[EventType "swiss"]
[EventCountry "GRE"]
[SourceTitle "playchess.com"]
[Source "ChessBase"]
[SourceQuality "1"]
[TimeControl "40/5400+30:1800+30"]

1. d4 {[%emt 0:00:03]} Nf6 {[%emt 0:00:07]} 2. c4 {[%emt 0:00:03]} g6 {[%emt 0:01:48]} 3. Nc3 {[%emt 0:00:06]} c5 {[%emt 0:00:05]} 4. d5 {[%emt 0:02:38]} Bg7 {[%emt 0:00:09]} 5. Nf3 {[%emt 0:02:50]} O-O {[%emt 0:00:21]} 6. e4 {[%emt 0:04:59]} d6 {[%emt 0:02:04]} 7. Be2 {[%emt 0:07:40]} e5 {[%emt 0:01:26]} 8. dxe6 {[%emt 0:07:44]} Bxe6 {[%emt 0:00:08]} 9. Bf4 {[%emt 0:08:09]} Qa5 {[%emt 0:01:14]} 10. O-O {[%emt 0:04:14]} Nc6 {[%emt 0:00:09]} 11. Re1 {[%emt 0:13:38]} Rad8 {[%emt 0:04:49]} 12. Bd3 {[%emt 0:11:05]} Ng4 {[%emt 0:02:00]} 13. Bg5 {[%emt 0:13:22]} Rde8 {[%emt 0:07:12]} 14. Nb5 {[%emt 0:05:10]} h6 {[%emt 0:05:39]} 15. Bd2 {[%emt 0:01:05]} Qb6 {[%emt 0:00:30]} 16. h3 {[%emt 0:07:39]} Nge5 {[%emt 0:00:20]} 17. Bc3 {[%emt 0:00:42]} a6 {[%emt 0:01:27]} 18. Nxe5 {[%emt 0:00:49]} Bxe5 {[%emt 0:01:03]} 19. Na3 {[%emt 0:02:45]} Bxc3 {[%emt 0:01:26]} 20. bxc3 {[%emt 0:00:04]} Qa5 {[%emt 0:00:27]} 21. Qc1 {[%emt 0:02:22]} Kg7 {[%emt 0:00:32]} 22. Rb1 {[%emt 0:01:05]} Rb8 {[%emt 0:00:44]} 23. f4 {[%emt 0:00:24]} Rfe8 {[%emt 0:05:17]} 24. Qb2 {[%emt 0:00:57]} Re7 {[%emt 0:04:17]} 25. Nc2 {[%emt 0:01:13]} b5 {[%emt 0:04:33]} 26. cxb5 {[%emt 0:01:00]} c4 {[%emt 0:00:06]} 27. Bf1 {[%emt 0:01:01]} Rxb5 {[%emt 0:00:12]} 28. Nb4 {[%emt 0:00:14]} Reb7 {[%emt 0:05:19]} 29. Red1 {[%emt 0:01:24]} Qb6+ {[%emt 0:00:36]} 30. Kh1 {[%emt 0:00:10]} Qe3 {[%emt 0:08:46]} 31. Qa1 {[%emt 0:00:45]} Ne7 {[%emt 0:04:22]} 32. a4 {[%emt 0:00:35]} Rh5 {[%emt 0:00:19]} 33. Nc2 {[%emt 0:00:18]} Qxe4 {[%emt 0:00:15]} 34. Rxb7 {[%emt 0:00:32]} Qxb7 {[%emt 0:00:43]} 35. Kh2 {[%emt 0:00:15]} Ra5 {[%emt 0:05:36]} 36. Rxd6 {[%emt 0:00:27]} Qc7 {[%emt 0:03:01]} 37. Qd1 {[%emt 0:00:52]} Nd5 {[%emt 0:02:46]} 38. Qd4+ {[%emt 0:00:10]} Kh7 {[%emt 0:00:07]} 39. Rxe6 {[%emt 0:00:56]} fxe6 {[%emt 0:00:05]} 40. Bxc4 {[%emt 0:00:00]} Rxa4 {[%emt 0:00:00]} 41. Nb4 {[%emt 0:00:49]} Qxf4+ {[%emt 0:03:03]} 42. Qxf4 {[%emt 0:00:12]} Nxf4 {[%emt 0:00:05]} 43. Bxa6 {[%emt 0:00:04]} Nd5 {[%emt 0:00:06]} 44. Bb5 {[%emt 0:01:22]} Ra3 {[%emt 0:02:03]} 45. Bc4 {[%emt 0:08:16]} Nxb4 {[%emt 0:00:10]} 46. cxb4 {[%emt 0:00:03]} e5 {[%emt 0:00:04]} 47. b5 {[%emt 0:00:11]} Ra4 {[%emt 0:01:15]} 48. Bd5 {[%emt 0:00:33]} Rb4 {[%emt 0:00:13]} 49. Bc6 {[%emt 0:00:06]} Rb3 {[%emt 0:00:21]} 50. Kg1 {[%emt 0:00:22]} Kg7 {[%emt 0:00:06]} 51. Kf2 {[%emt 0:00:03]} Kf6 {[%emt 0:00:04]} 52. g3 {[%emt 0:01:29]} Kf5 {[%emt 0:00:17]} 53. Be8 {[%emt 0:01:42]} e4 {[%emt 0:01:19]} 54. Bd7+ {[%emt 0:00:54]} Ke5 {[%emt 0:00:07]} 55. Be8 {[%emt 0:00:03]} g5 {[%emt 0:00:06]} 56. Bc6 {[%emt 0:00:29]} Kd4 {[%emt 0:00:05]} 0-1

[Event "European Womens-ch 2025"]
[Site "Rhodes"]
[Date "2025.03.31"]
[Round "1.19"]
[White "Atalik, Ekaterina"]
[Black "Deak-Sala, Emilia"]
[Result "1-0"]
[Annotator "RC"]
[ECO "E18"]
[WhiteElo "2375"]
[BlackElo "2112"]
[PlyCount "59"]
[EventDate "2025.03.29"]
[EventType "swiss"]
[EventCountry "GRE"]
[SourceTitle "playchess.com"]
[Source "ChessBase"]
[SourceQuality "1"]
[TimeControl "40/5400+30:1800+30"]

1. d4 {[%emt 0:00:03]} Nf6 {[%emt 0:01:38]} 2. c4 {[%emt 0:00:11]} e6 {[%emt 0:00:04]} 3. Nf3 {[%emt 0:00:28]} b6 {[%emt 0:00:06]} 4. g3 {[%emt 0:00:31]} Bb4+ {[%emt 0:00:08]} 5. Bd2 {[%emt 0:00:20]} Be7 {[%emt 0:00:06]} 6. Nc3 {[%emt 0:00:50]} d5 {[%emt 0:03:41]} 7. Bg2 {[%emt 0:01:24]} O-O {[%emt 0:00:45]} 8. cxd5 {[%emt 0:02:04]} exd5 {[%emt 0:00:49]} 9. O-O {[%emt 0:00:33]} Bb7 {[%emt 0:00:25]} 10. Rc1 {[%emt 0:02:11]} Nbd7 {[%emt 0:03:08]} 11. Bf4 {[%emt 0:01:38]} c6 {[%emt 0:00:42]} 12. a3 {[%emt 0:01:06]} Nh5 {[%emt 0:12:05]} 13. Qd3 {[%emt 0:09:57]} Nxf4 {[%emt 0:07:50]} 14. gxf4 {[%emt 0:00:06]} c5 {[%emt 0:00:24]} 15. Ne5 {[%emt 0:07:32]} cxd4 {[%emt 0:10:17]} 16. Qxd4 {[%emt 0:05:27]} Bc5 {[%emt 0:00:57]} 17. Qd3 {[%emt 0:01:21]} Nxe5 {[%emt 0:17:58]} 18. fxe5 {[%emt 0:00:06]} Qh4 {[%emt 0:00:57]} 19. Rcd1 {[%emt 0:14:34]} a5 {[%emt 0:06:58]} 20. Bxd5 {[%emt 0:05:11]} Bxd5 {[%emt 0:02:01]} 21. Nxd5 {[%emt 0:06:26]} Rae8 {[%emt 0:01:14]} 22. Qg3 {[%emt 0:07:47]} Qxg3+ {[%emt 0:02:59]} 23. hxg3 {[%emt 0:00:05]} a4 {[%emt 0:03:38]} 24. Nc3 {[%emt 0:04:42]} Rxe5 {[%emt 0:00:11]} 25. Nxa4 {[%emt 0:01:13]} Rxe2 {[%emt 0:02:00]} 26. b4 {[%emt 0:00:53]} Be7 {[%emt 0:03:08]} 27. Nxb6 {[%emt 0:00:44]} Bg5 {[%emt 0:02:53]} 28. Rfe1 {[%emt 0:08:59]} Rc2 {[%emt 0:02:04]} 29. Nd7 {[%emt 0:00:40]} Ra8 {[%emt 0:01:28]} 30. b5 {[%emt 0:00:45]} 1-0

[Event "European Womens-ch 2025"]
[Site "Rhodes"]
[Date "2025.03.31"]
[Round "1.20"]
[White "Heinatz, Gundula"]
[Black "Milliet, Sophie"]
[Result "1/2-1/2"]
[Annotator "RC"]
[ECO "D02"]
[WhiteElo "2111"]
[BlackElo "2371"]
[PlyCount "46"]
[EventDate "2025.03.29"]
[EventType "swiss"]
[EventCountry "GRE"]
[SourceTitle "playchess.com"]
[Source "ChessBase"]
[SourceQuality "1"]
[TimeControl "40/5400+30:1800+30"]

1. Nf3 {[%emt 0:00:06]} d5 {[%emt 0:00:10]} 2. d4 {[%emt 0:00:35]} e6 {[%emt 0:00:21]} 3. c4 {[%emt 0:00:52]} Nf6 {[%emt 0:00:40]} 4. g3 {[%emt 0:02:23]} Bd6 {[%emt 0:02:30]} 5. Bg2 {[%emt 0:00:54]} O-O {[%emt 0:00:05]} 6. O-O {[%emt 0:00:13]} h6 {[%emt 0:00:03]} 7. Nc3 {[%emt 0:03:36]} Nc6 {[%emt 0:00:21]} 8. Bf4 {[%emt 0:18:54]} dxc4 {[%emt 0:12:19]} 9. Ne5 {[%emt 0:04:01]} Bxe5 {[%emt 0:00:50]} 10. dxe5 {[%emt 0:03:00]} Nd7 {[%emt 0:00:57]} 11. Bxc6 {[%emt 0:07:36]} bxc6 {[%emt 0:00:04]} 12. Qd4 {[%emt 0:01:55]} Nb6 {[%emt 0:16:43]} 13. Qc5 {[%emt 0:05:10]} Rb8 {[%emt 0:09:12]} 14. Rad1 {[%emt 0:02:40]} Bd7 {[%emt 0:01:10]} 15. e4 {[%emt 0:03:29]} Re8 {[%emt 0:09:17]} 16. Be3 {[%emt 0:03:17]} f5 {[%emt 0:05:03]} 17. exf6 {[%emt 0:04:07]} Qxf6 {[%emt 0:00:06]} 18. Qh5 {[%emt 0:10:10]} Red8 {[%emt 0:03:18]} 19. Bd4 {[%emt 0:03:11]} Qe7 {[%emt 0:00:18]} 20. Bc5 {[%emt 0:03:02]} Qf6 {[%emt 0:01:11]} 21. Bd4 {[%emt 0:01:19]} Qe7 {[%emt 0:00:05]} 22. Bc5 {[%emt 0:00:07]} Qf6 {[%emt 0:01:03]} 23. Bd4 {[%emt 0:00:11]} Qe7 {[%emt 0:01:14]} 1/2-1/2

[Event "European Womens-ch 2025"]
[Site "Rhodes"]
[Date "2025.03.31"]
[Round "1.21"]
[White "Socko, Monika"]
[Black "Paasikangas, Johanna"]
[Result "1-0"]
[Annotator "RC"]
[ECO "C68"]
[WhiteElo "2369"]
[BlackElo "2106"]
[PlyCount "79"]
[EventDate "2025.03.29"]
[EventType "swiss"]
[EventCountry "GRE"]
[SourceTitle "playchess.com"]
[Source "ChessBase"]
[SourceQuality "1"]
[TimeControl "40/5400+30:1800+30"]

1. e4 {[%emt 0:00:03]} e5 {[%emt 0:00:15]} 2. Nf3 {[%emt 0:00:06]} Nc6 {[%emt 0:00:07]} 3. Bb5 {[%emt 0:00:49]} a6 {[%emt 0:00:24]} 4. Bxc6 {[%emt 0:00:40]} dxc6 {[%emt 0:00:35]} 5. O-O {[%emt 0:00:08]} Qf6 {[%emt 0:01:33]} 6. d4 {[%emt 0:01:58]} exd4 {[%emt 0:01:20]} 7. Bg5 {[%emt 0:00:52]} Qd6 {[%emt 0:00:40]} 8. Qxd4 {[%emt 0:02:48]} Qxd4 {[%emt 0:10:00]} 9. Nxd4 {[%emt 0:00:20]} Bd7 {[%emt 0:01:20]} 10. Nc3 {[%emt 0:01:33]} Be7 {[%emt 0:05:03]} 11. Bxe7 {[%emt 0:01:54]} Nxe7 {[%emt 0:00:07]} 12. Rad1 {[%emt 0:01:49]} O-O-O {[%emt 0:01:14]} 13. Rd2 {[%emt 0:00:42]} c5 {[%emt 0:04:45]} 14. Nde2 {[%emt 0:05:00]} Bc6 {[%emt 0:06:06]} 15. Rfd1 {[%emt 0:02:13]} Rxd2 {[%emt 0:00:08]} 16. Rxd2 {[%emt 0:00:03]} Ng6 {[%emt 0:05:53]} 17. Ng3 {[%emt 0:02:10]} Re8 {[%emt 0:03:02]} 18. f3 {[%emt 0:14:47]} Ne5 {[%emt 0:04:11]} 19. b3 {[%emt 0:00:44]} g6 {[%emt 0:04:12]} 20. Kf2 {[%emt 0:00:52]} b6 {[%emt 0:03:09]} 21. Nge2 {[%emt 0:01:44]} f5 {[%emt 0:04:16]} 22. exf5 {[%emt 0:04:35]} gxf5 {[%emt 0:02:24]} 23. Nf4 {[%emt 0:00:38]} Ng6 {[%emt 0:05:40]} 24. Kg3 {[%emt 0:01:06]} Ne7 {[%emt 0:11:46]} 25. Nh5 {[%emt 0:04:36]} Rf8 {[%emt 0:02:08]} 26. Ne2 {[%emt 0:05:36]} Bd7 {[%emt 0:02:08]} 27. Nef4 {[%emt 0:02:02]} Nc6 {[%emt 0:04:28]} 28. Kh4 {[%emt 0:02:03]} Rf7 {[%emt 0:01:38]} 29. Kg5 {[%emt 0:02:11]} Nd4 {[%emt 0:06:15]} 30. Kh6 {[%emt 0:06:22]} Nb5 {[%emt 0:03:30]} 31. Ng7 {[%emt 0:02:29]} Nd6 {[%emt 0:01:13]} 32. Kxh7 {[%emt 0:03:10]} c4 {[%emt 0:04:27]} 33. h4 {[%emt 0:04:06]} cxb3 {[%emt 0:00:16]} 34. cxb3 {[%emt 0:00:17]} Kd8 {[%emt 0:01:43]} 35. h5 {[%emt 0:06:40]} Ke7 {[%emt 0:00:43]} 36. h6 {[%emt 0:02:04]} Ne8 {[%emt 0:01:09]} 37. Re2+ {[%emt 0:00:39]} Kf6 {[%emt 0:00:30]} 38. Nd5+ {[%emt 0:00:45]} Kg5 {[%emt 0:00:13]} 39. f4+ {[%emt 0:00:06]} Kg4 {[%emt 0:00:39]} 40. Kg8 {[%emt 0:00:00]} 1-0

[Event "European Womens-ch 2025"]
[Site "Rhodes"]
[Date "2025.03.31"]
[Round "1.22"]
[White "Zagorac, Lara"]
[Black "Roebers, Eline"]
[Result "0-1"]
[Annotator "RC"]
[ECO "E11"]
[WhiteElo "2106"]
[BlackElo "2367"]
[PlyCount "66"]
[EventDate "2025.03.29"]
[EventType "swiss"]
[EventCountry "GRE"]
[SourceTitle "playchess.com"]
[Source "ChessBase"]
[SourceQuality "1"]
[TimeControl "40/5400+30:1800+30"]

1. Nf3 {[%emt 0:00:02]} d5 {[%emt 0:00:03]} 2. d4 {[%emt 0:00:36]} e6 {[%emt 0:00:05]} 3. c4 {[%emt 0:00:26]} Nf6 {[%emt 0:00:04]} 4. g3 {[%emt 0:00:23]} Bb4+ {[%emt 0:00:03]} 5. Bd2 {[%emt 0:00:14]} Be7 {[%emt 0:00:05]} 6. Bg2 {[%emt 0:00:13]} O-O {[%emt 0:00:04]} 7. O-O {[%emt 0:00:19]} Nbd7 {[%emt 0:00:02]} 8. Qc2 {[%emt 0:00:33]} a5 {[%emt 0:00:07]} 9. Ne5 {[%emt 0:15:11]} c6 {[%emt 0:05:10]} 10. Rd1 {[%emt 0:04:27]} Nxe5 {[%emt 0:08:11]} 11. dxe5 {[%emt 0:00:11]} Ng4 {[%emt 0:00:08]} 12. Bc3 {[%emt 0:05:00]} Qc7 {[%emt 0:02:43]} 13. Bd4 {[%emt 0:14:45]} dxc4 {[%emt 0:06:37]} 14. Qe4 {[%emt 0:02:10]} f5 {[%emt 0:00:24]} 15. exf6 {[%emt 0:01:28]} Nxf6 {[%emt 0:00:05]} 16. Qc2 {[%emt 0:12:38]} b5 {[%emt 0:00:58]} 17. h3 {[%emt 0:02:02]} e5 {[%emt 0:04:57]} 18. Be3 {[%emt 0:02:49]} Be6 {[%emt 0:03:17]} 19. a4 {[%emt 0:06:08]} Nd5 {[%emt 0:12:20]} 20. Bd2 {[%emt 0:04:19]} Qb6 {[%emt 0:04:21]} 21. e3 {[%emt 0:02:33]} Nb4 {[%emt 0:09:27]} 22. Bxb4 {[%emt 0:04:31]} axb4 {[%emt 0:00:06]} 23. a5 {[%emt 0:03:52]} Qc5 {[%emt 0:02:02]} 24. Nd2 {[%emt 0:01:21]} b3 {[%emt 0:01:52]} 25. Qe4 {[%emt 0:03:48]} Ra6 {[%emt 0:03:12]} 26. Nf3 {[%emt 0:04:46]} Bf6 {[%emt 0:01:02]} 27. g4 {[%emt 0:00:45]} Bd5 {[%emt 0:00:45]} 28. Qb1 {[%emt 0:02:18]} b4 {[%emt 0:01:36]} 29. g5 {[%emt 0:01:09]} Be7 {[%emt 0:00:37]} 30. Nd2 {[%emt 0:01:24]} Bxg5 {[%emt 0:03:40]} 31. Qc1 {[%emt 0:02:37]} Bxe3 {[%emt 0:01:41]} 32. Nxb3 {[%emt 0:01:03]} Bxf2+ {[%emt 0:00:18]} 33. Kh2 {[%emt 0:00:39]} Bg3+ {[%emt 0:00:06]} 0-1

[Event "European Womens-ch 2025"]
[Site "Rhodes"]
[Date "2025.03.31"]
[Round "1.23"]
[White "Bulmaga, Irina"]
[Black "Tsetskhladze, Mariam"]
[Result "1-0"]
[Annotator "RC"]
[ECO "B31"]
[WhiteElo "2362"]
[BlackElo "2105"]
[PlyCount "85"]
[EventDate "2025.03.29"]
[EventType "swiss"]
[EventCountry "GRE"]
[SourceTitle "playchess.com"]
[Source "ChessBase"]
[SourceQuality "1"]
[TimeControl "40/5400+30:1800+30"]

1. e4 {[%emt 0:00:04]} c5 {[%emt 0:00:09]} 2. Nf3 {[%emt 0:00:07]} Nc6 {[%emt 0:00:11]} 3. Bb5 {[%emt 0:00:11]} g6 {[%emt 0:00:25]} 4. O-O {[%emt 0:00:18]} Bg7 {[%emt 0:00:22]} 5. d3 {[%emt 0:00:14]} e5 {[%emt 0:02:24]} 6. a3 {[%emt 0:01:46]} Nge7 {[%emt 0:06:13]} 7. b4 {[%emt 0:00:34]} cxb4 {[%emt 0:09:41]} 8. axb4 {[%emt 0:00:20]} d5 {[%emt 0:17:16]} 9. exd5 {[%emt 0:22:32]} Qxd5 {[%emt 0:02:49]} 10. Bc4 {[%emt 0:05:58]} Qd8 {[%emt 0:01:54]} 11. c3 {[%emt 0:09:09]} Bf5 {[%emt 0:07:00]} 12. Ng5 {[%emt 0:03:17]} O-O {[%emt 0:08:27]} 13. g4 {[%emt 0:00:59]} Bd7 {[%emt 0:02:39]} 14. Qf3 {[%emt 0:02:17]} Be8 {[%emt 0:03:43]} 15. Qh3 {[%emt 0:06:15]} h6 {[%emt 0:01:32]} 16. Ne4 {[%emt 0:00:06]} Kh7 {[%emt 0:05:02]} 17. Nbd2 {[%emt 0:08:15]} Nd5 {[%emt 0:03:26]} 18. Bxd5 {[%emt 0:11:18]} Qxd5 {[%emt 0:00:06]} 19. b5 {[%emt 0:04:50]} Nd8 {[%emt 0:08:47]} 20. Ba3 {[%emt 0:05:51]} Rh8 {[%emt 0:00:53]} 21. Be7 {[%emt 0:05:42]} Ne6 {[%emt 0:05:56]} 22. c4 {[%emt 0:00:36]} Qd4 {[%emt 0:07:20]} 23. Nb3 {[%emt 0:03:35]} Nf4 {[%emt 0:02:17]} 24. Ng5+ {[%emt 0:02:09]} Kg8 {[%emt 0:00:07]} 25. Nxd4 {[%emt 0:00:09]} Nxh3+ {[%emt 0:00:06]} 26. Nxh3 {[%emt 0:00:10]} exd4 {[%emt 0:00:05]} 27. Bc5 {[%emt 0:00:22]} Bd7 {[%emt 0:02:00]} 28. f3 {[%emt 0:01:12]} h5 {[%emt 0:00:59]} 29. Nf2 {[%emt 0:00:16]} hxg4 {[%emt 0:00:27]} 30. fxg4 {[%emt 0:00:06]} a6 {[%emt 0:01:56]} 31. Rfe1 {[%emt 0:01:11]} Bf6 {[%emt 0:01:11]} 32. Ne4 {[%emt 0:00:36]} Be5 {[%emt 0:00:27]} 33. Bd6 {[%emt 0:00:43]} Bg7 {[%emt 0:00:36]} 34. Nc5 {[%emt 0:01:51]} Bc8 {[%emt 0:00:26]} 35. b6 {[%emt 0:01:44]} Rh4 {[%emt 0:00:33]} 36. Re8+ {[%emt 0:00:49]} Kh7 {[%emt 0:00:06]} 37. h3 {[%emt 0:00:45]} Rxh3 {[%emt 0:00:24]} 38. Rf1 {[%emt 0:00:23]} Rh4 {[%emt 0:00:56]} 39. Rxf7 {[%emt 0:00:29]} Rxg4+ {[%emt 0:00:08]} 40. Kf2 {[%emt 0:00:00]} Rg5 {[%emt 0:00:00]} 41. Bf8 {[%emt 0:04:08]} Rf5+ {[%emt 0:02:10]} 42. Rxf5 {[%emt 0:00:14]} gxf5 {[%emt 0:00:04]} 43. Re7 {[%emt 0:00:20]} 1-0